[Event "*** Titled Tuesday Blitz"]
[Site "Chess.com"]
[Date "2020.05.26"]
[Round "8"]
[White "aleksandrovaleksei"]
[Black "GrafLermontov"]
[Result "0-1"]
[WhiteElo "2669"]
[BlackElo "2499"]
[TimeControl "180+1"]
[EndTime "11:41:21 PDT"]
[Termination "GrafLermontov won on time"]

1. d4 {[%clk 0:03:00.9]} 1... Nf6 {[%clk 0:02:59.7]} 2. c4 {[%clk 0:03:01]} 2...
g6 {[%clk 0:03:00.1]} 3. Nc3 {[%clk 0:03:01.2]} 3... d5 {[%clk 0:03:00.3]} 4.
cxd5 {[%clk 0:03:01.1]} 4... Nxd5 {[%clk 0:03:01.2]} 5. Bd2 {[%clk 0:03:01.6]}
5... Nb6 {[%clk 0:02:58.9]} 6. e3 {[%clk 0:03:00.9]} 6... Bg7 {[%clk 0:02:58.7]}
7. f4 {[%clk 0:03:01.1]} 7... Nc6 {[%clk 0:02:58.1]} 8. Nf3 {[%clk 0:02:56]}
8... O-O {[%clk 0:02:57.4]} 9. Be2 {[%clk 0:02:55.3]} 9... Nb4 {[%clk 0:02:53]}
10. O-O {[%clk 0:02:50.3]} 10... N4d5 {[%clk 0:02:52.8]} 11. Ne4 {[%clk
0:02:29.8]} 11... c6 {[%clk 0:02:47.9]} 12. Rc1 {[%clk 0:02:23.6]} 12... Nf6
{[%clk 0:02:38.2]} 13. Nc5 {[%clk 0:02:20.7]} 13... Nbd7 {[%clk 0:02:30.9]} 14.
Nb3 {[%clk 0:02:14]} 14... a5 {[%clk 0:02:24.5]} 15. a4 {[%clk 0:01:51.9]} 15...
Ne4 {[%clk 0:02:24.1]} 16. Be1 {[%clk 0:01:47.7]} 16... Ndf6 {[%clk 0:02:15.5]}
17. Ne5 {[%clk 0:01:39.6]} 17... Nd5 {[%clk 0:02:13.6]} 18. Bd2 {[%clk
0:01:16.1]} 18... Qb6 {[%clk 0:01:43.8]} 19. Nc4 {[%clk 0:01:13.7]} 19... Qa7
{[%clk 0:01:21.2]} 20. Ncxa5 {[%clk 0:01:03.4]} 20... Nxd2 {[%clk 0:00:47.1]}
21. Qxd2 {[%clk 0:01:01.6]} 21... Bd7 {[%clk 0:00:47.5]} 22. Bf3 {[%clk
0:00:32.1]} 22... Nb6 {[%clk 0:00:18.1]} 23. Ra1 {[%clk 0:00:26.5]} 23... Be6
{[%clk 0:00:18.3]} 24. Rfc1 {[%clk 0:00:19.3]} 24... Rfd8 {[%clk 0:00:16]} 25.
h3 {[%clk 0:00:17.9]} 25... Bd5 {[%clk 0:00:16.3]} 26. Be2 {[%clk 0:00:15.3]}
26... Bxb3 {[%clk 0:00:13.4]} 27. Nxb3 {[%clk 0:00:14.6]} 27... Nd5 {[%clk
0:00:14.3]} 28. Kh2 {[%clk 0:00:13]} 28... Nf6 {[%clk 0:00:13.2]} 29. Bf3 {[%clk
0:00:12.1]} 29... Nd7 {[%clk 0:00:10.1]} 30. a5 {[%clk 0:00:11]} 30... Qa6
{[%clk 0:00:09.1]} 31. Be2 {[%clk 0:00:09.9]} 31... Qa7 {[%clk 0:00:09.2]} 32.
Qb4 {[%clk 0:00:09.2]} 32... Nf6 {[%clk 0:00:06.7]} 33. Bf3 {[%clk 0:00:08.4]}
33... Nd5 {[%clk 0:00:05.3]} 34. Qd2 {[%clk 0:00:08.3]} 34... Nc7 {[%clk
0:00:04.7]} 35. Nc5 {[%clk 0:00:07.1]} 35... Na6 {[%clk 0:00:05.1]} 36. Nxa6
{[%clk 0:00:06.1]} 36... Qxa6 {[%clk 0:00:06]} 37. Qb4 {[%clk 0:00:06.2]} 37...
e6 {[%clk 0:00:05.7]} 38. Rc2 {[%clk 0:00:05]} 38... Bf8 {[%clk 0:00:05.5]} 39.
Qb3 {[%clk 0:00:05]} 39... Bd6 {[%clk 0:00:03.4]} 40. h4 {[%clk 0:00:04.2]}
40... h6 {[%clk 0:00:03]} 41. g3 {[%clk 0:00:03.2]} 41... Qa7 {[%clk 0:00:02.9]}
0-1

[Event "*** Titled Tuesday Blitz"]
[Site "Chess.com"]
[Date "2020.05.26"]
[Round "8"]
[White "TregubovP"]
[Black "diablanni"]
[Result "1-0"]
[WhiteElo "2558"]
[BlackElo "2322"]
[TimeControl "180+1"]
[EndTime "11:41:21 PDT"]
[Termination "TregubovP won by checkmate"]

1. e4 {[%clk 0:03:00.9]} 1... c5 {[%clk 0:02:59.8]} 2. Nf3 {[%clk 0:03:00.7]}
2... Nc6 {[%clk 0:02:59.8]} 3. c3 {[%clk 0:02:59]} 3... Nf6 {[%clk 0:02:59.6]}
4. e5 {[%clk 0:02:58.5]} 4... Nd5 {[%clk 0:02:59.3]} 5. d4 {[%clk 0:02:59.1]}
5... cxd4 {[%clk 0:02:59]} 6. cxd4 {[%clk 0:02:59.3]} 6... e6 {[%clk 0:02:59.1]}
7. Bc4 {[%clk 0:02:58.8]} 7... d6 {[%clk 0:02:58.3]} 8. O-O {[%clk 0:02:59.3]}
8... Be7 {[%clk 0:02:57.5]} 9. Qe2 {[%clk 0:02:59.4]} 9... O-O {[%clk
0:02:56.6]} 10. Rd1 {[%clk 0:02:59.3]} 10... Na5 {[%clk 0:02:38.8]} 11. Bd3
{[%clk 0:02:57.2]} 11... Nb4 {[%clk 0:02:25.2]} 12. Nc3 {[%clk 0:02:57.2]} 12...
Nxd3 {[%clk 0:02:24]} 13. Rxd3 {[%clk 0:02:57.7]} 13... d5 {[%clk 0:02:21.1]}
14. Ne1 {[%clk 0:02:56.6]} 14... g6 {[%clk 0:02:13.4]} 15. Bh6 {[%clk
0:02:49.7]} 15... Re8 {[%clk 0:02:13.1]} 16. Rh3 {[%clk 0:02:42.5]} 16... Bd7
{[%clk 0:01:45.9]} 17. Nf3 {[%clk 0:02:35.4]} 17... Rc8 {[%clk 0:01:41.7]} 18.
Qe3 {[%clk 0:02:35.3]} 18... Nc4 {[%clk 0:01:39.3]} 19. Qf4 {[%clk 0:02:35.4]}
19... Nxb2 {[%clk 0:01:28.9]} 20. Ng5 {[%clk 0:02:24.5]} 20... Rf8 {[%clk
0:01:11.7]} 21. Nxh7 {[%clk 0:02:10]} 21... Rxc3 {[%clk 0:01:02.5]} 22. Rxc3
{[%clk 0:02:00.3]} 22... Kxh7 {[%clk 0:01:01.6]} 23. Rh3 {[%clk 0:01:57.7]}
23... Kg8 {[%clk 0:01:01]} 24. Rb1 {[%clk 0:01:52.2]} 24... Nc4 {[%clk
0:00:50.5]} 25. Bxf8 {[%clk 0:01:48.1]} 25... Bxf8 {[%clk 0:00:49.6]} 26. Rxb7
{[%clk 0:01:45.4]} 26... Qa5 {[%clk 0:00:32.9]} 27. Qc1 {[%clk 0:01:31.7]} 27...
Bc8 {[%clk 0:00:18.3]} 28. Rb8 {[%clk 0:01:27.4]} 28... Qc7 {[%clk 0:00:15.8]}
29. Rbb3 {[%clk 0:01:18.3]} 29... Bg7 {[%clk 0:00:15.6]} 30. Rhd3 {[%clk
0:01:08.6]} 30... a5 {[%clk 0:00:13.6]} 31. h4 {[%clk 0:01:07.9]} 31... Ba6
{[%clk 0:00:11.4]} 32. h5 {[%clk 0:01:07.1]} 32... a4 {[%clk 0:00:11.2]} 33. Rb4
{[%clk 0:01:05.3]} 33... Bf8 {[%clk 0:00:08.4]} 34. Rxa4 {[%clk 0:01:03.7]}
34... Bb5 {[%clk 0:00:08]} 35. Ra8 {[%clk 0:01:03.8]} 35... Qb7 {[%clk
0:00:07.8]} 36. Rxf8+ {[%clk 0:01:01.8]} 36... Kxf8 {[%clk 0:00:07.6]} 37. Qh6+
{[%clk 0:01:01.2]} 37... Ke7 {[%clk 0:00:07.9]} 38. hxg6 {[%clk 0:01:01.2]}
38... Nxe5 {[%clk 0:00:07.9]} 39. Rg3 {[%clk 0:00:44.3]} 39... Nxg6 {[%clk
0:00:07.4]} 40. Rxg6 {[%clk 0:00:43.3]} 40... Bd3 {[%clk 0:00:05.8]} 41. Rg7
{[%clk 0:00:35.2]} 41... Qb1+ {[%clk 0:00:05.7]} 42. Kh2 {[%clk 0:00:34.9]}
42... Bg6 {[%clk 0:00:06]} 43. Qh4+ {[%clk 0:00:27.4]} 43... Kd6 {[%clk
0:00:05.9]} 44. Qd8+ {[%clk 0:00:24.9]} 44... Kc6 {[%clk 0:00:05.8]} 45. Rg8
{[%clk 0:00:23]} 45... Qe4 {[%clk 0:00:04.9]} 46. Qc8+ {[%clk 0:00:21.2]} 46...
Kd6 {[%clk 0:00:05]} 47. Qd8+ {[%clk 0:00:20.7]} 47... Kc6 {[%clk 0:00:04.4]}
48. Qc8+ {[%clk 0:00:18.6]} 48... Kd6 {[%clk 0:00:04.5]} 49. Qb8+ {[%clk
0:00:19]} 49... Ke7 {[%clk 0:00:04.5]} 50. Qd8# {[%clk 0:00:19]} 1-0

[Event "*** Titled Tuesday Blitz"]
[Site "Chess.com"]
[Date "2020.05.26"]
[Round "8"]
[White "thedjoker98"]
[Black "chenrip"]
[Result "1/2-1/2"]
[WhiteElo "2470"]
[BlackElo "2302"]
[TimeControl "180+1"]
[EndTime "11:41:24 PDT"]
[Termination "Game drawn - insufficient material"]

1. d4 {[%clk 0:03:00.9]} 1... Nf6 {[%clk 0:02:59.3]} 2. c4 {[%clk 0:02:59.3]}
2... e6 {[%clk 0:02:59.5]} 3. Nc3 {[%clk 0:02:57.8]} 3... Bb4 {[%clk 0:02:59.8]}
4. g3 {[%clk 0:02:57]} 4... O-O {[%clk 0:02:59.1]} 5. Bg2 {[%clk 0:02:51.2]}
5... d5 {[%clk 0:02:58.7]} 6. Nf3 {[%clk 0:02:50.7]} 6... Nc6 {[%clk 0:02:57.8]}
7. O-O {[%clk 0:02:48.4]} 7... dxc4 {[%clk 0:02:56.7]} 8. Qa4 {[%clk 0:02:48.4]}
8... Bd7 {[%clk 0:02:42.4]} 9. Bg5 {[%clk 0:02:40.6]} 9... Bxc3 {[%clk
0:02:32.8]} 10. bxc3 {[%clk 0:02:38.8]} 10... Nxd4 {[%clk 0:02:32.7]} 11. Qxc4
{[%clk 0:02:38.9]} 11... Nf5 {[%clk 0:02:19.5]} 12. Ne5 {[%clk 0:02:30.1]} 12...
Nd6 {[%clk 0:02:16.3]} 13. Qh4 {[%clk 0:02:23.4]} 13... Bb5 {[%clk 0:01:46.2]}
14. Ng4 {[%clk 0:01:33.6]} 14... Nde8 {[%clk 0:01:37.7]} 15. Bxb7 {[%clk
0:01:21.5]} 15... Rb8 {[%clk 0:01:36.9]} 16. Rfd1 {[%clk 0:01:08.1]} 16... Qe7
{[%clk 0:01:33.1]} 17. Bf3 {[%clk 0:01:08]} 17... e5 {[%clk 0:01:26.2]} 18. Rab1
{[%clk 0:01:03.1]} 18... Qe6 {[%clk 0:01:14]} 19. a4 {[%clk 0:00:55.2]} 19...
Bxa4 {[%clk 0:01:09.1]} 20. Rxb8 {[%clk 0:00:49.3]} 20... Bxd1 {[%clk 0:01:09]}
21. Nxf6+ {[%clk 0:00:31.8]} 21... Nxf6 {[%clk 0:01:08.7]} 22. Qb4 {[%clk
0:00:31.8]} 22... Qd6 {[%clk 0:00:58.5]} 23. Rxf8+ {[%clk 0:00:29.3]} 23... Qxf8
{[%clk 0:00:53.3]} 24. Qa5 {[%clk 0:00:29.5]} 24... Qd6 {[%clk 0:00:48.8]} 25.
Qxa7 {[%clk 0:00:29.3]} 25... h6 {[%clk 0:00:49.3]} 26. Bxf6 {[%clk 0:00:26.1]}
26... gxf6 {[%clk 0:00:48.8]} 27. Qa8+ {[%clk 0:00:21.8]} 27... Kg7 {[%clk
0:00:48.3]} 28. Kg2 {[%clk 0:00:22.7]} 28... Bc2 {[%clk 0:00:43.8]} 29. Qd5
{[%clk 0:00:22]} 29... Qxd5 {[%clk 0:00:32.7]} 30. Bxd5 {[%clk 0:00:22.9]} 30...
f5 {[%clk 0:00:33.2]} 31. f4 {[%clk 0:00:22.8]} 31... exf4 {[%clk 0:00:28.7]}
32. gxf4 {[%clk 0:00:23.7]} 32... Be4+ {[%clk 0:00:25.5]} 33. Bxe4 {[%clk
0:00:21.6]} 33... fxe4 {[%clk 0:00:26.4]} 34. Kf2 {[%clk 0:00:18.2]} 34... Kf6
{[%clk 0:00:25.6]} 35. e3 {[%clk 0:00:13.6]} 35... Ke6 {[%clk 0:00:23]} 36. Kg3
{[%clk 0:00:13.3]} 36... f5 {[%clk 0:00:22.6]} 37. Kh4 {[%clk 0:00:13.5]} 37...
Kd5 {[%clk 0:00:13.1]} 38. Kh5 {[%clk 0:00:14.4]} 38... Kc4 {[%clk 0:00:13.4]}
39. Kxh6 {[%clk 0:00:14.8]} 39... Kd3 {[%clk 0:00:12.8]} 40. Kg5 {[%clk
0:00:15.7]} 40... Kxe3 {[%clk 0:00:12.8]} 41. h4 {[%clk 0:00:15.3]} 41... Kf3
{[%clk 0:00:13.2]} 42. h5 {[%clk 0:00:16.2]} 42... e3 {[%clk 0:00:13.8]} 43. h6
{[%clk 0:00:17.1]} 43... e2 {[%clk 0:00:14.3]} 44. h7 {[%clk 0:00:18]} 44...
e1=Q {[%clk 0:00:14.3]} 45. h8=Q {[%clk 0:00:18.9]} 45... Qg3+ {[%clk
0:00:14.2]} 46. Kxf5 {[%clk 0:00:19]} 46... Qxf4+ {[%clk 0:00:14.2]} 47. Ke6
{[%clk 0:00:18.6]} 47... Qc4+ {[%clk 0:00:13.4]} 48. Kd7 {[%clk 0:00:18.1]}
48... Ke3 {[%clk 0:00:13.4]} 49. Qe5+ {[%clk 0:00:14.7]} 49... Kd2 {[%clk
0:00:11.3]} 50. Qd4+ {[%clk 0:00:12.9]} 50... Qxd4+ {[%clk 0:00:11]} 51. cxd4
{[%clk 0:00:13.8]} 51... Kd3 {[%clk 0:00:11.4]} 52. d5 {[%clk 0:00:14.7]} 52...
Kd4 {[%clk 0:00:11.7]} 53. d6 {[%clk 0:00:15.6]} 53... cxd6 {[%clk 0:00:11.2]}
54. Kxd6 {[%clk 0:00:16.5]} 1/2-1/2

[Event "*** Titled Tuesday Blitz"]
[Site "Chess.com"]
[Date "2020.05.26"]
[Round "8"]
[White "lupta_robin"]
[Black "Ceejay271"]
[Result "1-0"]
[WhiteElo "2613"]
[BlackElo "2403"]
[TimeControl "180+1"]
[EndTime "11:41:25 PDT"]
[Termination "lupta_robin won by resignation"]

1. e4 {[%clk 0:03:00.9]} 1... c5 {[%clk 0:02:59.2]} 2. b3 {[%clk 0:03:01.3]}
2... d5 {[%clk 0:02:58]} 3. exd5 {[%clk 0:03:00.4]} 3... Qxd5 {[%clk 0:02:58.1]}
4. Nc3 {[%clk 0:03:00.9]} 4... Qd8 {[%clk 0:02:58.1]} 5. Bb5+ {[%clk 0:02:59.2]}
5... Bd7 {[%clk 0:02:57.7]} 6. Qe2 {[%clk 0:02:59.1]} 6... Nf6 {[%clk
0:02:56.8]} 7. Bb2 {[%clk 0:02:58.7]} 7... e6 {[%clk 0:02:56.6]} 8. O-O-O {[%clk
0:02:59]} 8... Be7 {[%clk 0:02:56.5]} 9. d4 {[%clk 0:02:57.7]} 9... a6 {[%clk
0:02:53.7]} 10. Bxd7+ {[%clk 0:02:57.2]} 10... Nbxd7 {[%clk 0:02:47.8]} 11. Nf3
{[%clk 0:02:30]} 11... cxd4 {[%clk 0:02:37.5]} 12. Rxd4 {[%clk 0:02:25.8]} 12...
Qc7 {[%clk 0:02:33.8]} 13. Rhd1 {[%clk 0:02:21.1]} 13... O-O {[%clk 0:02:32.2]}
14. Kb1 {[%clk 0:02:18.3]} 14... Rfd8 {[%clk 0:02:30.5]} 15. Ne4 {[%clk
0:02:11.5]} 15... Nxe4 {[%clk 0:02:23.6]} 16. Qxe4 {[%clk 0:02:12.4]} 16... Bf6
{[%clk 0:02:20.7]} 17. R4d2 {[%clk 0:02:02.7]} 17... Bxb2 {[%clk 0:02:19.7]} 18.
Kxb2 {[%clk 0:02:02.6]} 18... Nf6 {[%clk 0:02:20.2]} 19. Qf4 {[%clk 0:01:41.2]}
19... Qe7 {[%clk 0:02:05.1]} 20. Qb4 {[%clk 0:01:25.8]} 20... Qf8 {[%clk
0:01:51.5]} 21. Rxd8 {[%clk 0:01:19.9]} 21... Rxd8 {[%clk 0:01:50.3]} 22. Rxd8
{[%clk 0:01:20.3]} 22... Qxd8 {[%clk 0:01:49.6]} 23. Qxb7 {[%clk 0:01:20.9]}
23... a5 {[%clk 0:01:46.2]} 24. a4 {[%clk 0:01:20]} 24... Nd5 {[%clk 0:01:41.6]}
25. Ne5 {[%clk 0:01:14.5]} 25... Qf8 {[%clk 0:01:31.3]} 26. Qa7 {[%clk
0:01:01.8]} 26... f6 {[%clk 0:01:28.9]} 27. Nd3 {[%clk 0:01:00.5]} 27... Qd8
{[%clk 0:01:25.4]} 28. Nc5 {[%clk 0:00:53.8]} 28... Nf4 {[%clk 0:00:58.9]} 29.
Qd7 {[%clk 0:00:29.9]} 29... Qxd7 {[%clk 0:00:47.2]} 30. Nxd7 {[%clk 0:00:30.8]}
30... Kf7 {[%clk 0:00:44.2]} 31. g3 {[%clk 0:00:27.9]} 31... Nd5 {[%clk
0:00:38.5]} 32. Nc5 {[%clk 0:00:28]} 32... Nb4 {[%clk 0:00:31.9]} 33. c3 {[%clk
0:00:25.2]} 33... Nc6 {[%clk 0:00:31.1]} 34. Ka3 {[%clk 0:00:25.5]} 34... Ke7
{[%clk 0:00:31]} 35. b4 {[%clk 0:00:25.9]} 35... Kd6 {[%clk 0:00:29.8]} 36. Kb3
{[%clk 0:00:25]} 36... f5 {[%clk 0:00:28.4]} 37. Kc4 {[%clk 0:00:24.6]} 37... e5
{[%clk 0:00:20.4]} 38. Nb7+ {[%clk 0:00:24.8]} 38... Kc7 {[%clk 0:00:19.8]} 39.
Nxa5 {[%clk 0:00:25.7]} 39... Ne7 {[%clk 0:00:17]} 40. Kc5 {[%clk 0:00:26.1]}
40... e4 {[%clk 0:00:17.2]} 41. Nc4 {[%clk 0:00:26.5]} 41... g5 {[%clk
0:00:16.9]} 42. b5 {[%clk 0:00:26.6]} 42... f4 {[%clk 0:00:16.6]} 43. gxf4
{[%clk 0:00:23.8]} 43... gxf4 {[%clk 0:00:17.5]} 44. Kd4 {[%clk 0:00:24.1]}
44... e3 {[%clk 0:00:16.1]} 45. fxe3 {[%clk 0:00:24]} 45... f3 {[%clk
0:00:15.6]} 46. Ke4 {[%clk 0:00:23.5]} 46... f2 {[%clk 0:00:15.5]} 47. Nd2
{[%clk 0:00:24.1]} 47... Ng6 {[%clk 0:00:14.1]} 48. Kf3 {[%clk 0:00:23.6]} 48...
Ne5+ {[%clk 0:00:14.2]} 49. Kxf2 {[%clk 0:00:24]} 49... Nd3+ {[%clk 0:00:13.2]}
50. Kf3 {[%clk 0:00:23.8]} 50... Kb6 {[%clk 0:00:14.1]} 51. Ke4 {[%clk
0:00:22.5]} 51... Nc5+ {[%clk 0:00:15]} 52. Kd5 {[%clk 0:00:22.8]} 52... Nxa4
{[%clk 0:00:14.4]} 53. c4 {[%clk 0:00:23.2]} 53... Nc5 {[%clk 0:00:13.5]} 54. e4
{[%clk 0:00:23.2]} 54... Nd3 {[%clk 0:00:12.6]} 55. e5 {[%clk 0:00:23.6]} 55...
Nf4+ {[%clk 0:00:11.7]} 56. Kd6 {[%clk 0:00:24.2]} 56... Kb7 {[%clk 0:00:10.6]}
57. e6 {[%clk 0:00:24.7]} 57... Ng6 {[%clk 0:00:10.2]} 58. e7 {[%clk 0:00:25.3]}
58... Nxe7 {[%clk 0:00:09.6]} 59. Kxe7 {[%clk 0:00:26.2]} 1-0

[Event "*** Titled Tuesday Blitz"]
[Site "Chess.com"]
[Date "2020.05.26"]
[Round "8"]
[White "Gerasimenyuk_Miha"]
[Black "PawnEatingZombie"]
[Result "1-0"]
[WhiteElo "2403"]
[BlackElo "2257"]
[TimeControl "180+1"]
[EndTime "11:41:27 PDT"]
[Termination "Gerasimenyuk_Miha won on time"]

1. d4 {[%clk 0:03:00.8]} 1... d5 {[%clk 0:02:59.6]} 2. Nf3 {[%clk 0:03:01.1]}
2... e6 {[%clk 0:02:59.3]} 3. Bg5 {[%clk 0:03:01.7]} 3... Be7 {[%clk 0:02:58.2]}
4. h4 {[%clk 0:03:01.9]} 4... Nf6 {[%clk 0:02:57]} 5. e3 {[%clk 0:03:01.6]} 5...
h6 {[%clk 0:02:57]} 6. Bf4 {[%clk 0:03:01.8]} 6... c5 {[%clk 0:02:52.9]} 7. c3
{[%clk 0:03:01.9]} 7... Nc6 {[%clk 0:02:52.9]} 8. Nbd2 {[%clk 0:03:01.9]} 8...
O-O {[%clk 0:02:50.8]} 9. Bd3 {[%clk 0:03:01.7]} 9... b6 {[%clk 0:02:50.1]} 10.
g4 {[%clk 0:03:01.8]} 10... Nxg4 {[%clk 0:02:41.2]} 11. Rg1 {[%clk 0:02:55.9]}
11... h5 {[%clk 0:02:37.9]} 12. Ng5 {[%clk 0:02:50.8]} 12... e5 {[%clk
0:01:59.6]} 13. dxe5 {[%clk 0:02:48.4]} 13... Ncxe5 {[%clk 0:01:20.4]} 14. Bxe5
{[%clk 0:02:47.4]} 14... Bxg5 {[%clk 0:01:18.7]} 15. Bxg7 {[%clk 0:02:19.9]}
15... Kxg7 {[%clk 0:01:13.1]} 16. hxg5 {[%clk 0:02:19.4]} 16... Qxg5 {[%clk
0:00:56]} 17. Nf3 {[%clk 0:02:13.9]} 17... Qf6 {[%clk 0:00:48.1]} 18. Qc2 {[%clk
0:02:09.5]} 18... Rh8 {[%clk 0:00:45.8]} 19. Nh2 {[%clk 0:01:59.4]} 19... Kf8
{[%clk 0:00:41.9]} 20. Nxg4 {[%clk 0:01:55]} 20... hxg4 {[%clk 0:00:40.8]} 21.
O-O-O {[%clk 0:01:54.6]} 21... Be6 {[%clk 0:00:40.6]} 22. Kb1 {[%clk 0:01:48.1]}
22... Ke7 {[%clk 0:00:40.1]} 23. e4 {[%clk 0:01:40.9]} 23... Rh2 {[%clk
0:00:32.9]} 24. exd5 {[%clk 0:01:38]} 24... Rxf2 {[%clk 0:00:28.4]} 25. Qb3
{[%clk 0:01:36.5]} 25... Bf5 {[%clk 0:00:26.4]} 26. Rge1+ {[%clk 0:01:33.8]}
26... Kf8 {[%clk 0:00:23.5]} 27. Bxf5 {[%clk 0:01:24.3]} 27... Qxf5+ {[%clk
0:00:22.6]} 28. Ka1 {[%clk 0:01:21.8]} 28... Re8 {[%clk 0:00:21.1]} 29. Rh1
{[%clk 0:01:18.3]} 29... Ree2 {[%clk 0:00:19.7]} 30. Rb1 {[%clk 0:01:09.7]}
30... Rd2 {[%clk 0:00:12.7]} 31. c4 {[%clk 0:01:07.4]} 31... Qf3 {[%clk
0:00:10]} 32. Qb5 {[%clk 0:00:54.8]} 32... Qf6 {[%clk 0:00:07.8]} 33. Rhe1
{[%clk 0:00:48.7]} 33... g3 {[%clk 0:00:07.2]} 34. Qe8+ {[%clk 0:00:35.6]} 34...
Kg7 {[%clk 0:00:07.2]} 35. Qe3 {[%clk 0:00:32.7]} 35... g2 {[%clk 0:00:07.3]}
36. Qg3+ {[%clk 0:00:31.9]} 36... Qg6 {[%clk 0:00:07.8]} 37. Qe5+ {[%clk
0:00:28.2]} 37... Qf6 {[%clk 0:00:07.8]} 38. Qg3+ {[%clk 0:00:28.4]} 38... Qg6
{[%clk 0:00:08]} 39. Qh4 {[%clk 0:00:20.3]} 39... Rf1 {[%clk 0:00:06.2]} 40.
Rxf1 {[%clk 0:00:18.2]} 40... gxf1=Q {[%clk 0:00:05.8]} 41. Rxf1 {[%clk
0:00:18.6]} 41... Rg2 {[%clk 0:00:04.9]} 42. Qf4 {[%clk 0:00:18.1]} 42... Qc2
{[%clk 0:00:02]} 43. Qxf7+ {[%clk 0:00:17.1]} 43... Kh6 {[%clk 0:00:02.4]} 44.
Qf6+ {[%clk 0:00:15.1]} 44... Kh5 {[%clk 0:00:02.1]} 45. Rf5+ {[%clk 0:00:14.1]}
45... Kg4 {[%clk 0:00:02.3]} 46. Rg5+ {[%clk 0:00:14.3]} 1-0

[Event "*** Titled Tuesday Blitz"]
[Site "Chess.com"]
[Date "2020.05.26"]
[Round "8"]
[White "dpopadic"]
[Black "ulkaf961"]
[Result "0-1"]
[WhiteElo "2369"]
[BlackElo "2218"]
[TimeControl "180+1"]
[EndTime "11:41:27 PDT"]
[Termination "ulkaf961 won on time"]

1. e4 {[%clk 0:02:47.8]} 1... e6 {[%clk 0:02:59.4]} 2. d4 {[%clk 0:02:47.5]}
2... d5 {[%clk 0:02:59.7]} 3. e5 {[%clk 0:02:47.8]} 3... c5 {[%clk 0:02:59.5]}
4. Qg4 {[%clk 0:02:47.9]} 4... cxd4 {[%clk 0:02:57.3]} 5. Nf3 {[%clk 0:02:47.8]}
5... Nc6 {[%clk 0:02:57.1]} 6. Bd3 {[%clk 0:02:46.9]} 6... Nge7 {[%clk
0:02:49.2]} 7. O-O {[%clk 0:02:45]} 7... Ng6 {[%clk 0:02:49.7]} 8. Re1 {[%clk
0:02:43.6]} 8... Be7 {[%clk 0:02:32]} 9. a3 {[%clk 0:02:40.8]} 9... a5 {[%clk
0:02:29]} 10. c3 {[%clk 0:02:31.3]} 10... dxc3 {[%clk 0:02:27.3]} 11. Nxc3
{[%clk 0:02:31.4]} 11... O-O {[%clk 0:02:26.9]} 12. Qh5 {[%clk 0:02:16]} 12...
Bd7 {[%clk 0:01:04.9]} 13. Bd2 {[%clk 0:02:06.4]} 13... Qe8 {[%clk 0:00:57.6]}
14. h3 {[%clk 0:01:55.7]} 14... f5 {[%clk 0:00:56.3]} 15. Rac1 {[%clk
0:01:18.5]} 15... Ngxe5 {[%clk 0:00:50.4]} 16. Qxe8 {[%clk 0:01:11.7]} 16...
Nxf3+ {[%clk 0:00:50.5]} 17. gxf3 {[%clk 0:01:11.8]} 17... Raxe8 {[%clk
0:00:51.1]} 18. f4 {[%clk 0:01:07.8]} 18... Rf6 {[%clk 0:00:48.9]} 19. Kh2
{[%clk 0:00:57]} 19... Rh6 {[%clk 0:00:46.9]} 20. Rg1 {[%clk 0:00:55.7]} 20...
Bh4 {[%clk 0:00:46.8]} 21. Rg2 {[%clk 0:00:52.4]} 21... d4 {[%clk 0:00:46.6]}
22. Ne2 {[%clk 0:00:44.9]} 22... Rf6 {[%clk 0:00:44.7]} 23. Rcg1 {[%clk
0:00:40.6]} 23... Rf7 {[%clk 0:00:44.8]} 24. Bc4 {[%clk 0:00:37.9]} 24... Kf8
{[%clk 0:00:41.9]} 25. Rd1 {[%clk 0:00:35.7]} 25... g6 {[%clk 0:00:41.2]} 26.
Ng3 {[%clk 0:00:32.4]} 26... Bf6 {[%clk 0:00:40]} 27. Rgg1 {[%clk 0:00:30.3]}
27... Rg7 {[%clk 0:00:39.4]} 28. Rge1 {[%clk 0:00:29.9]} 28... e5 {[%clk
0:00:39.3]} 29. fxe5 {[%clk 0:00:29.3]} 29... Nxe5 {[%clk 0:00:39.4]} 30. Be2
{[%clk 0:00:21.9]} 30... b6 {[%clk 0:00:39.2]} 31. f4 {[%clk 0:00:18.7]} 31...
Nc6 {[%clk 0:00:38.5]} 32. Bf3 {[%clk 0:00:18.6]} 32... Rge7 {[%clk 0:00:38.5]}
33. Rxe7 {[%clk 0:00:18]} 33... Rxe7 {[%clk 0:00:38]} 34. Kg2 {[%clk 0:00:17.6]}
34... Nd8 {[%clk 0:00:33.5]} 35. Rc1 {[%clk 0:00:16.2]} 35... Ne6 {[%clk
0:00:33.6]} 36. Kf2 {[%clk 0:00:13.7]} 36... Nc5 {[%clk 0:00:33.3]} 37. Kg2
{[%clk 0:00:12.2]} 37... Nb3 {[%clk 0:00:31.8]} 38. Rd1 {[%clk 0:00:10.7]} 38...
Ba4 {[%clk 0:00:30.9]} 39. Be1 {[%clk 0:00:09.5]} 39... Nc5 {[%clk 0:00:30.2]}
40. Ra1 {[%clk 0:00:07.3]} 40... d3 {[%clk 0:00:30]} 41. Bc3 {[%clk 0:00:06.4]}
41... Bxc3 {[%clk 0:00:28.8]} 42. bxc3 {[%clk 0:00:06.5]} 42... d2 {[%clk
0:00:28.6]} 43. Kf2 {[%clk 0:00:03.8]} 43... Nd3+ {[%clk 0:00:28.4]} 44. Kg2
{[%clk 0:00:01.8]} 44... Re1 {[%clk 0:00:28.3]} 45. Ra2 {[%clk 0:00:01.9]} 45...
d1=Q {[%clk 0:00:25.4]} 46. Bxd1 {[%clk 0:00:01.9]} 46... Rxd1 {[%clk
0:00:22.7]} 47. Re2 {[%clk 0:00:01.9]} 47... Nxf4+ {[%clk 0:00:20.7]} 0-1